fUSD/lending_fUSD_20240822
["ID","MTS","AMOUNT","RATE_DAILY","PERIOD"]
[335600575,1724359832772,-150.6,0.0001099,2]
[335600576,1724359832969,-150.6,0.0001099,2]
[335600577,1724359832983,-150.6,0.0001099,2]
[335600578,1724359832992,-150.6,0.0001099,2]
[335600579,1724359833001,-150.6,0.0001099,2]
[335600580,1724359833010,-150.6,0.0001099,2]
[335600581,1724359833020,-150.6,0.0001099,2]
[335600582,1724359833030,-150.6,0.0001099,2]
[335600583,1724359833040,-150.6,0.0001099,2]
[335600584,1724359833050,-150.6,0.0001099,2]
[335600585,1724359833061,-150.6,0.0001099,2]
[335600586,1724359833072,-150.6,0.0001099,2]
[335600587,1724359833082,-150.6,0.0001099,2]
[335600588,1724359833092,-150.6,0.0001099,2]
[335600589,1724359833101,-150.6,0.0001099,2]
[335600590,1724359833111,-150.6,0.0001099,2]
[335600591,1724359833120,-150.6,0.0001099,2]
[335600592,1724359833131,-150.6,0.0001099,2]
[335600593,1724359833140,-150.6,0.0001099,2]
[335600594,1724359833150,-150.6,0.0001099,2]
[335600595,1724359833160,-150.6,0.0001099,2]
[335600596,1724359833170,-150.6,0.0001099,2]
[335600597,1724359833179,-166.76578094,0.00010993,2]
[335600598,1724359833189,-499.99999999,0.00010998,2]
[335600599,1724359833198,-486.69921638,0.00010999,2]
[335600600,1724359833208,-500.0,0.00010999,2]
[335600601,1724359833217,-500.0,0.00010999,2]
[335600602,1724359833227,-590.0,0.00011,2]
[335600603,1724359833236,-49582.36091316,0.00011,2]
[335600604,1724359833279,-280.56667432,0.00011,2]
[335600605,1724359833290,-44433.57140836,0.00011,2]
[335600606,1724359833302,-577.43184629,0.00011,2]
[335600607,1724359833313,-322.91174239,0.00011,2]
[335600608,1724359833333,-1650.99,0.00011,2]
[335600609,1724359833344,-3962.91643814,0.00011,2]
[335600614,1724359837961,-454.17,0.00010959,2]
[335600615,1724359837972,-389.1,0.00011,2]
[335600616,1724359838017,-17123.90098069,0.00011,2]
[335600617,1724359838027,-652.05676226,0.00011,2]
[335600618,1724359838178,-766.75591206,0.00011,2]
[335600619,1724359838234,-5000.0,0.00011,2]
[335600622,1724359840043,-687.06,0.00011,2]
[335600623,1724359840054,-824.7342915,0.00011,2]
[335600624,1724359840099,-12414.52112455,0.00011,2]
[335600625,1724359840110,-502.49888056,0.00011,2]
[335600626,1724359840120,-2437.59878754,0.00011,2]
[335600627,1724359840208,-285.55593083,0.00011,2]
[335600628,1724359840220,-2923.62999489,0.00011,2]
[335600629,1724359840320,-2556.83930075,0.00011,2]
[335600630,1724359840331,-293.04699676,0.00011,2]
[335600631,1724359840342,-1213.13686397,0.00011,2]
[335600632,1724359840353,-354.33584849,0.00011,2]
[335600633,1724359840366,-531.2423039,0.00011,2]
[335600634,1724359840382,-5749.0,0.00011,2]
[335600645,1724359843059,-446.25,0.00011,2]
[335600646,1724359843116,-576.09,0.00011,2]
[335600647,1724359843127,-301.25385499,0.00011,2]
[335600648,1724359843137,-1016.18242901,0.00011,2]
[335600649,1724359843225,-473.42034015,0.00011,2]
[335600650,1724359843238,-11962.4,0.00011,2]
[335600672,1724359845939,-779.46259794,0.00011,2]
[335600679,1724359846179,-17412.24119828,0.00011,2]
[335600680,1724359846191,-849.13398569,0.00011,2]
[335600681,1724359846206,-286.68669669,0.00011,2]
[335600682,1724359846217,-719.95798759,0.00011,2]
[335600683,1724359846228,-2448.9903007,0.00011,2]
[335600684,1724359846240,-538.15088626,0.00011,2]
[335600685,1724359846252,-856.20926424,0.00011,2]
[335600686,1724359846263,-1072.71037733,0.00011,2]
[335600687,1724359846274,-1638.75847345,0.00011,2]
[335600688,1724359846289,-1506.36110753,0.00011,2]
[335600689,1724359846300,-3490.26092754,0.00011,2]
[335600691,1724359846310,-206.99736139,0.00011,2]
[335600693,1724359846320,-322.00263861,0.00011,2]
[335600694,1724359846330,-590.34351231,0.00011,2]
[335600697,1724359846341,-450.0,0.00011,2]
[335600718,1724360328429,259.72,8.48e-05,2]
[335600719,1724360394721,159.21262708,8.48e-05,2]
[335600720,1724360401311,310.0,8.48e-05,2]
[335600721,1724360407332,242.46946245,8.48e-05,2]
[335600722,1724360409322,412.31964871,8.48e-05,2]
[335600723,1724360410812,310.0,8.48e-05,2]
[335600724,1724360412444,291.88020449,8.48e-05,2]
[335600725,1724360413199,200.16863146,8.48e-05,2]
[335600726,1724360429127,155.0,8.48e-05,2]
[335600727,1724360493743,159.21262708,8.48e-05,2]
[335600728,1724360499325,412.31964871,8.48e-05,2]
[335600729,1724360516456,291.88020449,8.48e-05,2]
[335600730,1724360523836,155.0,8.48e-05,2]
[335600731,1724360524138,155.0,8.48e-05,2]
[335600732,1724360528759,207.9591,0.0001,2]
[335600733,1724360537312,155.0,8.48e-05,2]
[335600734,1724360543712,310.0,0.0001,2]
[335600735,1724360584344,412.31964871,0.0001,2]
[335600739,1724360607775,159.21262708,0.0001,2]
[335600740,1724360612458,291.88020449,0.0001,2]
[335600741,1724360616395,150.0,9.976e-05,2]
[335600742,1724360624628,181.86810677,0.0001,2]
[335600743,1724360632134,155.0,0.0001,2]
[335600744,1724360632813,163.67145426,0.0001,2]
[335600745,1724360645898,304.12480458,0.00010009,2]
[335600746,1724360663316,155.0,0.0001,2]
[335600747,1724360670851,155.0,0.00010009,2]
[335600748,1724360686113,155.0,0.00010009,2]
[335600749,1724360708402,412.31964871,0.00010009,2]
[335600750,1724360709077,291.88020449,0.00010009,2]
[335600751,1724360715257,159.21262708,0.00010009,2]
[335600752,1724360728463,155.0,0.00010009,2]
[335600753,1724360764822,249.54,0.00010006,2]
[335600754,1724360793336,412.31964871,0.00010006,2]
[335600755,1724360793585,269.15,8.219e-05,2]
[335600756,1724360806988,267.10524779,0.00010006,2]
[335600757,1724360812036,250.0,9.995e-05,2]
[335600758,1724360812266,158.91507513,0.00010006,2]
[335600761,1724360833347,155.0,0.00010006,2]
[335600762,1724360845658,155.0,0.00010006,2]
[335600763,1724360883525,412.31964871,0.00010006,2]
[335600764,1724360896207,200.0,9.956e-05,2]
[335600769,1724360917775,159.15825312,0.00010006,2]
[335600770,1724360924685,1050.0,0.0001,2]
[335600771,1724360926668,155.0,0.00010006,2]
[335600775,1724360962352,412.31964871,0.00010006,2]
[335600776,1724361006679,190.81194978,0.00010006,2]
[335600777,1724361018098,200.0,9.956e-05,2]
[335600784,1724361032243,-257.31,0.00010011,2]
[335600785,1724361032252,-221.85,0.00010018,2]
[335600786,1724361032264,-605.22,0.00010018,2]
[335600787,1724361032306,-6052.56813129,0.00010018,2]
[335600793,1724361036321,153.76,8.012e-05,2]
[335600802,1724361038173,-17020.36186871,0.00010018,2]
[335600803,1724361038183,-155.18436246,0.00010097,2]
[335600804,1724361038193,-170.2,0.00010135,2]
[335600805,1724361038202,-178.36,0.00010475,2]
[335600806,1724361038212,-269.15,0.00010477,2]
[335600807,1724361038222,-5467.82068003,0.00010477,2]
[335600808,1724361038234,-883.01136766,0.00010566,2]
[335600809,1724361038244,-1723.91419305,0.00010699,2]
[335600810,1724361038254,-1000.0,0.00010723,2]
[335600811,1724361038263,-1006.5,0.00010799,2]
[335600812,1724361038273,-531.53,0.00010844,2]
[335600813,1724361038282,-531.53,0.00010844,2]
[335600814,1724361038293,-230.66180271,0.00010862,2]
[335600815,1724361038303,-219.07389839,0.00010862,2]
[335600816,1724361038313,-155.0,0.00010862,2]
[335600817,1724361038323,-284.43090338,0.00010888,2]
[335600818,1724361038333,-260.38331656,0.00010888,2]
[335600819,1724361038343,-155.0,0.00010888,2]
[335600820,1724361038352,-155.0,0.00010888,2]
[335600821,1724361038361,-155.34727206,0.00010888,2]
[335600822,1724361038370,-203.26467389,0.0001089,2]
[335600823,1724361038379,-380.32741541,0.0001089,2]
[335600824,1724361038389,-357.18774068,0.0001089,2]
[335600825,1724361038399,-155.0,0.0001089,2]
[335600826,1724361038408,-155.0,0.0001089,2]
[335600827,1724361038418,-155.22334272,0.0001089,2]
[335600828,1724361038427,-172.87,0.00010894,2]
[335600829,1724361038436,-150.0,0.00010898,2]
[335600830,1724361038446,-395.19865045,0.00010899,2]
[335600831,1724361038455,-12420.22993211,0.000109,2]
[335600832,1724361038465,-363.02,0.00010959,2]
[335600833,1724361038474,-250.0,0.00010959,2]
[335600834,1724361038484,-150.75,0.0001099,2]
[335600835,1724361038494,-150.75,0.0001099,2]
[335600836,1724361038503,-150.75,0.0001099,2]
[335600837,1724361038512,-150.75,0.0001099,2]
[335600838,1724361038522,-150.75,0.0001099,2]
[335600839,1724361038532,-150.75,0.0001099,2]
[335600840,1724361038541,-150.75,0.0001099,2]
[335600841,1724361038551,-150.75,0.0001099,2]
[335600842,1724361038560,-150.75,0.0001099,2]
[335600843,1724361038569,-150.75,0.0001099,2]
[335600844,1724361038579,-150.75,0.0001099,2]
[335600845,1724361038588,-150.75,0.0001099,2]
[335600846,1724361038598,-150.75,0.0001099,2]
[335600847,1724361038607,-150.75,0.0001099,2]
[335600848,1724361038616,-150.75,0.0001099,2]
[335600849,1724361038626,-150.75,0.0001099,2]
[335600850,1724361038635,-150.75,0.0001099,2]
[335600851,1724361038645,-150.75,0.0001099,2]
[335600852,1724361038654,-150.75,0.0001099,2]
[335600853,1724361038663,-150.75,0.0001099,2]
[335600854,1724361038672,-6852.82363776,0.00010997,2]
[335600855,1724361038681,-500.0,0.00010999,2]
[335600856,1724361038691,-500.0,0.00010999,2]
[335600857,1724361038700,-500.0,0.00010999,2]
[335600858,1724361038709,-500.0,0.00010999,2]
[335600859,1724361038719,-500.0,0.00010999,2]
[335600860,1724361038728,-500.0,0.00010999,2]
[335600861,1724361038737,-500.0,0.00010999,2]
[335600862,1724361038747,-500.0,0.00010999,2]
[335600863,1724361038756,-500.0,0.00010999,2]
[335600864,1724361038766,-500.0,0.00010999,2]
[335600865,1724361038775,-522.76547017,0.00010999,2]
[335600866,1724361038785,-500.0,0.00010999,2]
[335600867,1724361038795,-500.0,0.00010999,2]
[335600868,1724361038804,-500.0,0.00010999,2]
[335600869,1724361038814,-500.0,0.00010999,2]
[335600870,1724361038823,-500.0,0.00010999,2]
[335600871,1724361038832,-484.35512895,0.00010999,2]
[335600872,1724361038849,-15.64487105,0.00010999,2]
[335600873,1724361038858,-500.0,0.00010999,2]
[335600874,1724361038868,-500.0,0.00010999,2]
[335600875,1724361038878,-500.0,0.00010999,2]
[335600876,1724361038888,-500.0,0.00010999,2]
[335600877,1724361038897,-500.0,0.00010999,2]
[335600878,1724361038906,-348.33,0.00010999,2]
[335600879,1724361038915,-274.89442741,0.00010999,2]
[335600880,1724361038924,-500.0,0.00010999,2]
[335600881,1724361038933,-500.0,0.00010999,2]
[335600882,1724361038943,-500.0,0.00010999,2]
[335600883,1724361038952,-500.0,0.00010999,2]
[335600884,1724361038961,-500.0,0.00010999,2]
[335600885,1724361038971,-500.0,0.00010999,2]
[335600886,1724361038981,-500.0,0.00010999,2]
[335600887,1724361038990,-500.0,0.00010999,2]
[335600888,1724361039000,-500.0,0.00010999,2]
[335600889,1724361039009,-500.0,0.00010999,2]
[335600890,1724361039018,-500.0,0.00010999,2]
[335600891,1724361039028,-500.0,0.00010999,2]
[335600892,1724361039038,-500.0,0.00010999,2]
[335600893,1724361039047,-500.0,0.00010999,2]
[335600894,1724361039057,-500.0,0.00010999,2]
[335600895,1724361039237,-500.0,0.00010999,2]
[335600896,1724361039247,-500.0,0.00010999,2]
[335600897,1724361039257,-500.0,0.00010999,2]
[335600898,1724361039266,-500.0,0.00010999,2]
[335600899,1724361039277,-277.12,0.00010999,2]
[335600900,1724361039287,-500.0,0.00010999,2]
[335600901,1724361039296,-500.0,0.00010999,2]
[335600902,1724361039305,-500.0,0.00010999,2]
[335600903,1724361039317,-500.0,0.00010999,2]
[335600904,1724361039326,-500.0,0.00010999,2]
[335600905,1724361039335,-500.0,0.00010999,2]
[335600906,1724361039347,-500.0,0.00010999,2]
[335600907,1724361039356,-500.0,0.00010999,2]
[335600908,1724361039365,-500.0,0.00010999,2]
[335600909,1724361039375,-500.0,0.00010999,2]
[335600910,1724361039385,-500.0,0.00010999,2]
[335600911,1724361039394,-500.0,0.00010999,2]
[335600912,1724361039403,-500.0,0.00010999,2]
[335600913,1724361039413,-500.0,0.00010999,2]
[335600914,1724361039422,-500.0,0.00010999,2]
[335600915,1724361039431,-500.0,0.00010999,2]
[335600916,1724361039441,-500.0,0.00010999,2]
[335600917,1724361039450,-290.2,0.00010999,2]
[335600918,1724361039460,-500.0,0.00010999,2]
[335600919,1724361039469,-500.0,0.00010999,2]
[335600920,1724361039478,-500.0,0.00010999,2]
[335600921,1724361039487,-500.0,0.00010999,2]
[335600922,1724361039496,-500.0,0.00010999,2]
[335600923,1724361039505,-500.0,0.00010999,2]
[335600924,1724361039514,-500.0,0.00010999,2]
[335600925,1724361039523,-500.0,0.00010999,2]
[335600926,1724361039533,-500.0,0.00010999,2]
[335600927,1724361039541,-500.0,0.00010999,2]
[335600928,1724361039550,-500.0,0.00010999,2]
[335600929,1724361039560,-500.0,0.00010999,2]
[335600930,1724361039570,-440.55778922,0.00010999,2]
[335600931,1724361039578,-500.0,0.00010999,2]
[335600932,1724361039587,-500.0,0.00010999,2]
[335600933,1724361039597,-500.0,0.00010999,2]
[335600934,1724361039607,-269.22723918,0.00010999,2]
[335600935,1724361039616,-500.0,0.00010999,2]
[335600936,1724361039625,-500.0,0.00010999,2]
[335600937,1724361039634,-500.0,0.00010999,2]
[335600938,1724361039644,-500.0,0.00010999,2]
[335600939,1724361039654,-500.0,0.00010999,2]
[335600940,1724361039664,-500.0,0.00010999,2]
[335600941,1724361039673,-500.0,0.00010999,2]
[335600942,1724361039682,-500.0,0.00010999,2]
[335600943,1724361039691,-500.0,0.00010999,2]
[335600944,1724361039700,-500.0,0.00010999,2]
[335600945,1724361039711,-500.0,0.00010999,2]
[335600946,1724361039720,-500.0,0.00010999,2]
[335600947,1724361039729,-500.0,0.00010999,2]
[335600948,1724361039741,-500.0,0.00010999,2]
[335600949,1724361039751,-500.0,0.00010999,2]
[335600950,1724361039761,-500.0,0.00010999,2]
[335600951,1724361039771,-500.0,0.00010999,2]
[335600952,1724361039780,-500.0,0.00010999,2]
[335600953,1724361039790,-500.0,0.00010999,2]
[335600954,1724361039800,-500.0,0.00010999,2]
[335600955,1724361039810,-500.0,0.00010999,2]
[335600956,1724361039819,-500.0,0.00010999,2]
[335600957,1724361039829,-500.0,0.00010999,2]
[335600958,1724361039838,-224.3809277,0.00010999,2]
[335600959,1724361039847,-277.75836936,0.00010999,2]
[335600960,1724361039857,-155.0,0.00010999,2]
[335600961,1724361039866,-155.0,0.00010999,2]
[335600962,1724361039876,-1218.93877288,0.00010999,2]
[335600963,1724361039886,-42450.22279104,0.00011,2]
[335600964,1724361039899,-72031.33125911,0.00011,2]
[335600966,1724361039914,-638.24848553,0.00011,2]
[335600967,1724361039926,-10825.33917872,0.00011,2]
[335600968,1724361039936,-1228599.11246826,0.00011,2]
[335600969,1724361039945,-198976.51027123,0.00011,2]
[335600970,1724361039954,-5000.0,0.00011,2]
[335600971,1724361039964,-325752.82659332,0.00011,2]
[335600972,1724361039975,-6612.25158562,0.00011,2]
[335600973,1724361040295,-372.50946649,0.00011,2]
[335600974,1724361040308,-1224.96970469,0.00011,2]
[335600975,1724361040319,-1212.844,0.00011,2]
[335600976,1724361040353,-550.1564575,0.00011,2]
[335600977,1724361040522,-12921.63839813,0.00011,2]
[335600978,1724361040580,-600.0,0.00011,2]
[335600979,1724361040592,-983.78113628,0.00011,2]
[335600980,1724361040604,-760.32601188,0.00011,2]
[335600981,1724361040615,-5029.4305011,0.00011,2]
[335600982,1724361040643,-447.39722246,0.00011,2]
[335601004,1724361043310,-17268.42652662,0.00011,2]
[335601005,1724361043321,-6802.33893354,0.00011,2]
[335601006,1724361043333,-68768.91412927,0.00011,2]
[335601007,1724361043344,-501.39293075,0.00011,2]
[335601029,1724361043992,-7420.16471275,0.00011,2]
[335601032,1724361044003,-91159.20614069,0.00011,2]
[335601033,1724361044014,-253.88923684,0.00011,2]
[335601035,1724361044055,-1876.39825241,0.00011,2]
[335601036,1724361044066,-457.46955249,0.00011,2]
[335601037,1724361044078,-6950.22205377,0.00011,2]
[335601038,1724361044089,-524.26,0.00011,2]
[335601039,1724361044101,-451.22072221,0.00011,2]
[335601065,1724361046440,-396976.55141468,0.00011,2]
[335601066,1724361046455,-4778.87436627,0.00011,2]
[335601067,1724361046467,-120613.61172914,0.00011,2]
[335601239,1724361053364,410.65442719,0.00010006,2]
[335601240,1724361084008,10000.0,0.00027,120]
[335601241,1724361101004,10000.0,0.00027,120]
[335601242,1724361117877,9296.0,0.00027,120]
[335601257,1724361123786,151.57,8.458e-05,2]
[335601258,1724361187818,298.59379572,8.458e-05,2]
[335601259,1724361197892,500.0,0.00024932,120]
[335601263,1724361296435,264.66,8.391e-05,2]
[335601272,1724361725955,155.0,0.00010009,2]
[335601273,1724361742353,9384.08483791,0.00010009,2]
[335601274,1724361770150,347.36013889,0.00010009,2]
[335601275,1724361778190,181.69711588,9.959e-05,2]
[335601276,1724361827205,250.0,9.99e-05,2]
[335601277,1724361835556,274.85,8.219e-05,2]
[335601278,1724361862615,249.54,9.994e-05,2]
[335601289,1724361913570,415.26478706,0.00010009,2]
[335601290,1724361914934,150.0,9.888e-05,2]
[335601292,1724361927497,23900.0,9.974e-05,2]
[335601293,1724361955687,178.36,9.96e-05,2]
[335601294,1724362091339,330.34282033,0.00010009,2]
[335601295,1724362093243,1000.0,9.93e-05,2]
[335601296,1724362107810,431.37387087,0.00010009,2]
[335601309,1724362169341,600.60859268,0.00010009,2]
[335601329,1724362232297,-156.77939307,0.00010021,2]
[335601331,1724362232306,-1204.6733693,0.00010031,2]
[335601334,1724362232317,-1198.16775,0.00010031,2]
[335601339,1724362232359,-299.99,0.00010031,2]
[335601362,1724362238377,-569.78816292,0.00010031,2]
[335601363,1724362238438,-796.92022877,0.00010031,2]
[335601364,1724362238499,-1686.48048901,0.00010031,2]
[335601365,1724362238509,-287.0503,0.00010121,2]
[335601366,1724362238518,-217.84,0.00010221,2]
[335601367,1724362238528,-1898.89322015,0.00010478,2]
[335601368,1724362238541,-274.85,0.00010478,2]
[335601369,1724362238551,-1695.98599084,0.00010566,2]
[335601370,1724362238562,-1163.62452153,0.00010566,2]
[335601371,1724362238571,-192.10457847,0.00010698,2]
[335601372,1724362238588,-107.89542153,0.00010698,2]
[335601373,1724362238597,-300.0,0.00010698,2]
[335601374,1724362238607,-360.2,0.00010699,2]
[335601375,1724362238617,-1015.37,0.000107,2]
[335601376,1724362238627,-150.0,0.000107,2]
[335601377,1724362238637,-177.8,0.000107,2]
[335601378,1724362238646,-150.99,0.00010727,2]
[335601379,1724362238655,-188.19,0.00010728,2]
[335601380,1724362238665,-421.47,0.000108,2]
[335601381,1724362238674,-248.10332989,0.00010844,2]
[335601382,1724362238685,-283.42667011,0.00010844,2]
[335601383,1724362238695,-155.0,0.00010862,2]
[335601384,1724362238704,-356.9,0.00010874,2]
[335601385,1724362238714,-219.94455617,0.00010888,2]
[335601386,1724362238723,-460.4481801,0.0001089,2]
[335601387,1724362238732,-306.54258702,0.0001089,2]
[335601389,1724362238742,-150.0,0.00010899,2]
[335601391,1724362238751,-2500.0,0.000109,2]
[335601393,1724362238760,-900.4459,0.000109,2]
[335601395,1724362238769,-150.99,0.000109,2]
[335601396,1724362238779,-88575.2499,0.000109,2]
[335601397,1724362238788,-356.9,0.000109,2]
[335601398,1724362238798,-523.8009413,0.000109,2]
[335601400,1724362238807,-523.80094129,0.000109,2]
[335601401,1724362238816,-164.03405319,0.000109,2]
[335601402,1724362238825,-155.0,0.00010949,2]
[335601403,1724362238834,-190.64,0.00010959,2]
[335601404,1724362238844,-250.0,0.00010959,2]
[335601405,1724362238853,-2619.84841395,0.0001097,4]
[335601406,1724362238862,-790.76,0.00010979,2]
[335601407,1724362238872,-421.47,0.00010979,2]
[335601408,1724362238881,-150.0,0.00010986,2]
[335601409,1724362238890,-13878.80395008,0.00010989,2]
[335601410,1724362238900,-415.26478706,0.00010989,2]
[335601411,1724362238909,-240875.79919904,0.0001099,4]
[335601412,1724362238918,-150.76,0.0001099,2]
[335601413,1724362238927,-150.76,0.0001099,2]
[335601414,1724362238937,-150.76,0.0001099,2]
[335601415,1724362238946,-150.76,0.0001099,2]
[335601416,1724362238955,-150.76,0.0001099,2]
[335601417,1724362238965,-150.76,0.0001099,2]
[335601418,1724362238974,-150.76,0.0001099,2]
[335601419,1724362238983,-150.76,0.0001099,2]
[335601420,1724362238993,-150.76,0.0001099,2]
[335601421,1724362239002,-150.76,0.0001099,2]
[335601422,1724362239012,-150.76,0.0001099,2]
[335601423,1724362239021,-150.76,0.0001099,2]
[335601424,1724362239030,-150.76,0.0001099,2]
[335601425,1724362239039,-150.76,0.0001099,2]
[335601426,1724362239049,-3079.7895105,0.00010997,2]
[335601427,1724362239059,-588.82412706,0.00010998,2]
[335601428,1724362239068,-1116.492,0.00010998,2]
[335601429,1724362239077,-14881.65115831,0.00010999,2]
[335601430,1724362239087,-500.0,0.00010999,2]
[335601431,1724362239096,-500.0,0.00010999,2]
[335601432,1724362239105,-525.24487155,0.00010999,2]
[335601433,1724362239114,-63979.88676689,0.00011,2]
[335601434,1724362239124,-249985.1115254,0.00011,2]
[335601435,1724362240471,-1351.88108,0.00011,2]
[335601437,1724362240483,-1596.3,0.00011,2]
[335601439,1724362240495,-1840.0,0.00011,2]
[335601441,1724362240506,-500.0,0.00011,2]
[335601442,1724362240529,-791.92948966,0.00011,2]
[335601443,1724362242628,-31323.32699877,0.00011,2]
[335601444,1724362242638,-533022.2860388,0.00011,2]
[335601445,1724362242649,-4626.59156538,0.00011,2]
[335601446,1724362242661,-1244.6844767,0.00011,2]
[335601447,1724362242673,-697.52292622,0.00011,2]
[335601448,1724362242684,-1955.28897851,0.00011,2]
[335601449,1724362242709,-4153.22598848,0.00011,2]
[335601450,1724362242721,-1130.54686907,0.00011,2]
[335601451,1724362242732,-1581.58568819,0.00011,2]
[335601452,1724362242744,-1630.38532891,0.00011,2]
[335601453,1724362242755,-331305.73332924,0.00011,2]
[335601454,1724362242770,-2336.89922027,0.00011,2]
[335601455,1724362242781,-12166.95600629,0.00011,2]
[335601456,1724362242796,-1185.28509913,0.00011,2]
[335601457,1724362242807,-8940.94712161,0.00011,2]
[335601458,1724362242819,-99754.60108673,0.00011,2]
[335601459,1724362242830,-59972.97796053,0.00011,2]
[335601460,1724362242841,-12736.54400959,0.00011,2]
[335601461,1724362242854,-635.093,0.00011,2]
[335601462,1724362242865,-807.73443717,0.00011,2]
[335601463,1724362242877,-1245.64046841,0.00011,2]
[335601464,1724362242888,-10908.24907385,0.00011,2]
[335601465,1724362242899,-6365.67089427,0.00011,2]
[335601466,1724362242925,-795.53578029,0.00011,2]
[335601476,1724362243428,-5503.0,0.00011,2]
[335601477,1724362243440,-484.33001,0.00011,2]
[335601478,1724362243452,-674.16794245,0.00011,2]
[335601479,1724362243463,-3265.01060924,0.00011,2]
[335601480,1724362243475,-444.24779552,0.00011,2]
[335601481,1724362243487,-438.55758648,0.00011,2]
[335601482,1724362243498,-697.23822464,0.00011,2]
[335601483,1724362243510,-340.68338463,0.00011,2]
[335601484,1724362243521,-463.3999995,0.00011,2]
[335601510,1724362244230,-2447.60779868,0.00011,2]
[335601511,1724362244246,-265.7,0.00011,2]
[335601512,1724362244257,-661.3131406,0.00011,2]
[335601513,1724362244274,-521.31163644,0.00011,2]
[335601514,1724362244285,-529.685291,0.00011,2]
[335601516,1724362244296,-2934.77971038,0.00011,2]
[335601517,1724362244308,-675.025,0.00011,2]
[335601518,1724362244319,-10992.66936184,0.00011,2]
[335601519,1724362244331,-338.33948636,0.00011,2]
[335601520,1724362244342,-993.12736041,0.00011,2]
[335601521,1724362244353,-1000.0,0.00011,2]
[335601522,1724362244364,-7764.0017081,0.00011,2]
[335601523,1724362244377,-754.9399989,0.00011,2]
[335601524,1724362244388,-14038.9224587,0.00011,2]
[335601525,1724362244400,-2982.26387727,0.00011,2]
[335601526,1724362244420,-684.93719709,0.00011,2]
[335601527,1724362244431,-1516.6,0.00011,2]
[335601528,1724362244442,-7440.45079688,0.00011,2]
[335601529,1724362244453,-571.571,0.00011,2]
[335601530,1724362244465,-529.09321695,0.00011,2]
[335601531,1724362244476,-1082.91734936,0.00011,2]
[335601532,1724362244487,-10657.64146005,0.00011,2]
[335601533,1724362244498,-311.7686698,0.00011,2]
[335601534,1724362244509,-305.67881732,0.00011,2]
[335601535,1724362244525,-6679.72932,0.00011,2]
[335601536,1724362244539,-38710.46975587,0.00011,2]
[335601537,1724362244550,-6644.55524363,0.00011,2]
[335601538,1724362246369,-508.07079341,0.00011,2]
[335601539,1724362246381,-310.75725806,0.00011,2]
[335601540,1724362246392,-1417.56443875,0.00011,2]
[335601541,1724362246403,-30239.88879568,0.00011,2]
[335601542,1724362246427,-832.13,0.00011,2]
[335601543,1724362246493,-4417.52516995,0.00011,2]
[335601544,1724362246504,-1006.8,0.00011,2]
[335601545,1724362246515,-3611.26811942,0.00011,2]
[335601546,1724362246564,-844.76711332,0.00011,2]
[335601547,1724362246598,-735.97623011,0.00011,2]
[335601548,1724362246609,-660.54195458,0.00011,2]
[335601549,1724362246621,-1326.68,0.00011,2]
[335601550,1724362246646,-10401.00682633,0.00011,2]
[335601551,1724362246657,-1529.47956354,0.00011,2]
[335601552,1724362246668,-907.5,0.00011,2]
[335601553,1724362246679,-4287.8137196,0.00011,2]